bitfinex-derivatives/quotes_BTCF0:USTF0_20250718
["timestamp","ask_amount","ask_price","bid_price","bid_amount"]
[1752854660940,0.2245913,117960.0,117950.0,0.06269]
[1752854661138,1.2232313,117960.0,117950.0,0.44269]
[1752854661443,1.80828634,117960.0,117950.0,0.45801]
[1752854661640,1.2993713,117960.0,117950.0,0.45801]
[1752854662339,1.2993713,117960.0,117950.0,0.46201]
[1752854662842,1.2993713,117960.0,117950.0,0.54438]
[1752854663043,0.5302613,117960.0,117950.0,1.22277074]
[1752854663245,1.1685413,117960.0,117950.0,1.22277074]
[1752854663844,1.1685413,117960.0,117950.0,1.05329504]
[1752854664040,1.1685413,117960.0,117950.0,0.54438]
[1752854664245,1.1685413,117960.0,117950.0,0.7138557]
[1752854665142,1.1685413,117960.0,117950.0,0.54438]
[1752854665543,1.1685413,117960.0,117950.0,0.7138557]
[1752854665745,1.1686613,117960.0,117950.0,0.7138557]
[1752854667652,1.1686613,117960.0,117950.0,0.54438]
[1752854668054,1.1686613,117960.0,117950.0,0.7138557]
[1752854668256,1.5671613,117960.0,117950.0,0.54438]
[1752854668448,1.6056013,117960.0,117950.0,0.54438]
[1752854669357,1.5294613,117960.0,117950.0,0.54438]
[1752854669549,1.6056013,117960.0,117950.0,0.54438]
[1752854670252,2.11451634,117960.0,117950.0,0.54438]
[1752854670455,2.11451634,117960.0,117950.0,0.317]
[1752854670657,2.13595477,117960.0,117950.0,0.317]
[1752854670852,1.62703973,117960.0,117950.0,0.317]
[1752854671050,2.13595477,117960.0,117950.0,0.317]
[1752854671357,2.20418447,117960.0,117950.0,0.317]
[1752854671858,2.20418447,117960.0,117950.0,0.41705]
[1752854672157,2.20418447,117960.0,117950.0,0.41305]
[1752854672761,2.20418447,117960.0,117950.0,0.32818]
[1752854673461,2.20418447,117960.0,117950.0,0.311]
[1752854674855,2.21273812,117960.0,117950.0,0.311]
[1752854676363,2.21373812,117960.0,117950.0,0.31]
[1752854676563,0.2288202,117940.0,117930.0,0.11930811]
[1752854676863,1.6722102,117940.0,117930.0,0.48102]
[1752854677264,1.0365702,117940.0,117930.0,0.48102]
[1752854677464,1.6717702,117940.0,117930.0,0.48102]
[1752854677666,2.18068524,117940.0,117930.0,0.48102]
[1752854677861,2.18068524,117940.0,117930.0,0.43057]
[1752854678061,2.18080524,117940.0,117930.0,0.47205]
[1752854678259,2.18080524,117940.0,117930.0,0.48102]
[1752854679166,2.18080524,117940.0,117930.0,0.48202]
[1752854679464,1.6718902,117940.0,117930.0,0.48302]
[1752854679672,2.18080524,117940.0,117930.0,0.48302]
[1752854679869,2.19964038,117940.0,117930.0,0.372]
[1752854680967,0.3149845,117930.0,117920.0,0.10205]
[1752854681175,1.18469954,117930.0,117920.0,0.36]
[1752854682170,1.18469954,117930.0,117920.0,0.003]
[1752854682467,1.18469954,117930.0,117920.0,0.373]
[1752854682669,1.3115445,117930.0,117920.0,0.54165]
[1752854682877,0.6757845,117930.0,117920.0,0.54365]
[1752854683070,1.3115445,117930.0,117920.0,0.54365]
[1752854688179,1.3101445,117930.0,117920.0,0.54365]
[1752854688381,0.6757845,117930.0,117920.0,0.54365]
[1752854688579,0.5303045,117930.0,117920.0,1.05256504]
[1752854688876,0.08615,117950.0,117940.0,0.1411]
[1752854688877,0.3608,117950.0,117940.0,0.1411]
[1752854689083,0.3608,117950.0,117940.0,1.21713304]
[1752854689277,0.31562933,117960.0,117950.0,0.10205]
[1752854689483,1.31022933,117960.0,117950.0,1.04756504]
[1752854689683,1.32871957,117960.0,117950.0,1.04756504]
[1752854689978,1.32871828,117960.0,117950.0,1.04756504]
[1752854690183,0.94942933,117960.0,117950.0,1.04756504]
[1752854690383,0.3623974,117960.0,117950.0,1.05582007]
[1752854690579,0.1710588,117960.0,117950.0,1.39485587]
[1752854690782,1.0800061,117970.0,117960.0,0.2360614]
[1752854690982,1.207101,117970.0,117960.0,1.16702644]
[1752854691284,1.1646191,117970.0,117960.0,1.16702644]
[1752854691587,1.1646191,117970.0,117960.0,1.23431114]
[1752854691886,1.1646191,117970.0,117960.0,1.16802644]
[1752854692277,0.5302591,117970.0,117960.0,1.16802644]
[1752854692479,1.1646191,117970.0,117960.0,1.16902644]
[1752854692880,0.5302591,117970.0,117960.0,1.16902644]
[1752854693081,0.5302591,117970.0,117960.0,1.17102644]
[1752854694089,0.5302471,117970.0,117960.0,1.17102644]
[1752854694584,0.1694471,117970.0,117960.0,1.17102644]
[1752854694779,0.01917137,117980.0,117970.0,0.3380971]
[1752854694980,0.54940407,117980.0,117970.0,1.16701214]
[1752854695175,0.01917137,117980.0,117970.0,1.16701214]
[1752854695380,0.17050407,117980.0,117970.0,1.33654013]
[1752854695782,0.53130407,117980.0,117970.0,1.33654013]
[1752854695982,0.17050407,117980.0,117970.0,1.33654013]
[1752854696184,0.17050407,117980.0,117970.0,1.33754013]
[1752854696588,0.00107137,117980.0,117970.0,1.33754013]
[1752854696795,0.17050407,117980.0,117970.0,1.33754013]
[1752854697481,0.17050407,117980.0,117970.0,1.33854013]
[1752854698581,0.17050407,117980.0,117970.0,1.12205]
[1752854698887,0.53130407,117980.0,117970.0,1.80041214]
[1752854700088,0.17050407,117980.0,117970.0,1.80041214]
[1752854700492,0.53130407,117980.0,117970.0,1.16901214]
[1752854700686,0.59950407,117980.0,117970.0,0.49065]
[1752854700893,0.69900407,117980.0,117970.0,0.49065]
[1752854701093,0.69900407,117980.0,117970.0,0.6600971]
[1752854701295,0.59950407,117980.0,117970.0,0.6600971]
[1752854701692,0.59950407,117980.0,117970.0,0.49065]
[1752854702096,0.64048407,117980.0,117970.0,0.6600971]
[1752854702598,0.59950407,117980.0,117970.0,0.6600971]
[1752854702988,0.53130407,117980.0,117970.0,1.16901214]
[1752854703387,0.36187137,117980.0,117970.0,1.16901214]
[1752854703593,0.53130407,117980.0,117970.0,1.16901214]
[1752854703793,0.53130407,117980.0,117970.0,1.80145214]
[1752854704393,0.59648407,117980.0,117970.0,1.2925371]
[1752854704599,0.59648407,117980.0,117970.0,0.6600971]
[1752854705999,0.59648407,117980.0,117970.0,0.9552971]
[1752854706198,0.53956407,117980.0,117970.0,0.9552971]
[1752854707597,0.53956407,117980.0,117970.0,1.00059207]
[1752854708500,0.53956407,117980.0,117970.0,1.50950711]
[1752854709501,0.53956407,117980.0,117970.0,1.00059207]
[1752854709703,0.53956407,117980.0,117970.0,1.46421214]
[1752854710399,0.1694327,117980.0,117970.0,1.46421214]
[1752854710801,0.1694327,117980.0,117970.0,1.52463589]
[1752854710996,0.3608,117990.0,117980.0,0.3398427]
[1752854711201,0.5302183,117990.0,117980.0,1.51924158]
[1752854711403,0.5302183,117990.0,117980.0,2.10899774]
[1752854711703,0.5302183,117990.0,117980.0,1.5192398]
[1752854711897,1.78107334,117990.0,117980.0,0.84089206]
[1752854712102,1.79984105,117990.0,117980.0,0.67048206]
[1752854712299,1.79984105,117990.0,117980.0,0.65539916]
[1752854712998,0.71264601,117990.0,117980.0,0.74964916]
[1752854713199,1.34832601,117990.0,117980.0,1.04052392]
[1752854713500,1.24980601,117990.0,117980.0,1.54943896]
[1752854713691,0.54898601,117990.0,117980.0,1.47395774]
[1752854713897,0.01876771,117990.0,117980.0,1.47395774]
[1752854714302,0.01876771,117990.0,117980.0,1.53438149]
[1752854714805,0.01876771,117990.0,117980.0,1.76949349]
[1752854714999,0.530204,118010.0,118000.0,0.169404]
[1752854715197,0.3608,118010.0,118000.0,1.21403649]
[1752854715397,1.27907553,118020.0,118010.0,0.3397996]
[1752854715602,1.27907553,118020.0,118010.0,1.19743114]
[1752854715802,1.27907553,118020.0,118010.0,1.21252974]
[1752854716002,1.27907553,118020.0,118010.0,1.2427353]
[1752854716298,0.64171553,118020.0,118010.0,0.7036147]
[1752854716504,1.27891553,118020.0,118010.0,1.21252974]
[1752854717096,0.4618566,118030.0,118010.0,1.29425859]
[1752854717302,0.1693755,118020.0,118010.0,0.7420973]
[1752854717501,0.1693755,118020.0,118010.0,1.25101234]
[1752854717701,0.1693755,118020.0,118010.0,1.20866564]
[1752854717900,0.1693755,118020.0,118010.0,1.94985564]
[1752854718106,0.1693755,118020.0,118010.0,1.25291189]
[1752854718400,0.5301755,118020.0,118010.0,1.25291189]
[1752854718600,0.6117255,118020.0,118010.0,0.70564168]
[1752854718998,0.6938355,118020.0,118010.0,0.70564168]
[1752854719400,0.5548055,118020.0,118010.0,0.66030725]
[1752854719704,1.1774355,118020.0,118010.0,0.66030725]
[1752854719902,0.5384355,118020.0,118010.0,1.16922229]
[1752854720203,0.1693755,118020.0,118010.0,0.66030725]
[1752854720402,0.1693755,118020.0,118010.0,1.22964604]
[1752854720707,0.1693755,118020.0,118010.0,1.52484604]
[1752854721099,0.5725158,118030.0,118020.0,0.2540656]
[1752854721305,1.2115158,118030.0,118020.0,1.20403807]
[1752854721704,0.5301725,118030.0,118020.0,2.13823807]
[1752854722205,0.3608,118030.0,118020.0,2.13823807]
[1752854722505,0.3608,118030.0,118020.0,2.09290064]
[1752854722704,0.54905289,118040.0,118030.0,0.2361012]
[1752854722905,0.54905289,118040.0,118030.0,1.23426255]
[1752854723199,0.54905289,118040.0,118030.0,1.23424259]
[1752854723399,0.54905289,118040.0,118030.0,1.20403203]
[1752854723799,0.57368289,118040.0,118030.0,1.03467083]
[1752854724002,0.57368289,118040.0,118030.0,0.52575579]
[1752854724003,0.71271289,118040.0,118030.0,0.52575579]
[1752854724305,0.71371289,118040.0,118030.0,0.50780579]
[1752854724804,0.63160289,118040.0,118030.0,0.69511699]
[1752854725004,0.63360289,118040.0,118030.0,0.52575579]
[1752854725204,0.63360289,118040.0,118030.0,0.69511699]
[1752854725394,1.19975289,118040.0,118030.0,1.20403203]
[1752854725904,1.21612289,118040.0,118030.0,0.69511699]
[1752854726302,1.21612289,118040.0,118030.0,0.52575579]
[1752854726504,1.21608289,118040.0,118030.0,0.69511709]
[1752854726699,1.21556289,118040.0,118030.0,0.69511709]
[1752854726904,0.56031289,118040.0,118030.0,1.20403213]
[1752854728706,0.63360289,118040.0,118030.0,0.69511709]
[1752854728904,0.63360289,118040.0,118030.0,0.72526711]
[1752854728905,0.67458289,118040.0,118030.0,0.72526711]
[1752854729108,0.71571289,118040.0,118030.0,0.72526711]
[1752854731108,0.67458289,118040.0,118030.0,0.72526711]
[1752854731309,0.63360289,118040.0,118030.0,0.72526711]
[1752854731710,0.63360289,118040.0,118030.0,0.79204864]
[1752854732007,0.71551289,118040.0,118030.0,0.79204904]
[1752854732209,0.71551289,118040.0,118030.0,0.74670325]
[1752854732405,0.63360289,118040.0,118030.0,0.79204904]
[1752854732605,0.60539289,118040.0,118030.0,0.79204904]
[1752854732807,0.60539289,118040.0,118030.0,1.30096408]
[1752854733007,0.56031289,118040.0,118030.0,1.30096408]
[1752854733408,0.38269419,118040.0,118030.0,1.56601406]
[1752854733906,0.3638,118040.0,118030.0,1.56601406]
[1752854734102,0.3638,118040.0,118030.0,1.52066827]
[1752854734810,0.003,118040.0,118030.0,1.94189202]
[1752854735007,0.003,118040.0,118030.0,1.88146827]
[1752854735312,0.003,118040.0,118030.0,1.94189202]
[1752854735612,0.003,118040.0,118030.0,2.11133201]
[1752854738713,0.003,118040.0,118030.0,1.94189202]
[1752854743012,0.1723474,118040.0,118030.0,1.07217698]
[1752854743216,0.6135274,118040.0,118030.0,1.70617698]
[1752854744015,1.20435244,118040.0,118030.0,0.75766]
[1752854744217,1.20435244,118040.0,118030.0,0.92070555]
[1752854744416,0.6954374,118040.0,118030.0,0.62550555]
[1752854744614,0.6954374,118040.0,118030.0,0.45614375]
[1752854744814,0.6954374,118040.0,118030.0,0.63416555]
[1752854745717,0.6954374,118040.0,118030.0,0.69056555]
[1752854746118,0.6954374,118040.0,118030.0,0.70663555]
[1752854746418,0.6544174,118040.0,118030.0,0.70663555]
[1752854746614,1.2470074,118040.0,118030.0,1.28342681]
[1752854746921,0.5415274,118040.0,118030.0,1.28342681]
[1752854747420,0.6135274,118040.0,118030.0,0.77451177]
[1752854747622,0.6954374,118040.0,118030.0,0.77451177]
[1752854750218,0.6954374,118040.0,118030.0,1.06971177]
[1752854751725,1.83667244,118040.0,118030.0,0.12106585]
[1752854751925,0.1732518,118030.0,118020.0,0.00211645]
[1752854752127,0.1694048,118000.0,117990.0,0.17534068]
[1752854752335,2.03367984,118000.0,117990.0,0.47927068]
[1752854752931,1.5246048,118000.0,117990.0,0.48793068]
[1752854753234,1.5246048,118000.0,117990.0,0.50700068]
[1752854753434,1.59292372,118000.0,117990.0,0.43146]
[1752854753927,0.96132372,118000.0,117990.0,0.6542792]
[1752854754325,1.59604372,118000.0,117990.0,0.6542792]
[1752854754526,1.59804372,118000.0,117990.0,0.6542792]
[1752854754726,1.59604372,118000.0,117990.0,0.6542792]
[1752854754929,1.5284848,118000.0,117990.0,0.6542792]
[1752854756437,0.8940048,118000.0,117990.0,0.6542792]
[1752854756633,0.8940048,118000.0,117990.0,1.16319424]
[1752854756833,1.5304448,118000.0,117990.0,1.16319424]
[1752854757234,0.8940048,118000.0,117990.0,1.16319424]
[1752854757633,1.5304048,118000.0,117990.0,1.16319424]
[1752854757939,1.1695248,118000.0,117990.0,1.16319424]
[1752854758432,0.3638,118000.0,117990.0,1.16319424]
[1752854758633,0.003,118000.0,117990.0,2.45543424]
[1752854758834,0.3608,118010.0,118000.0,0.206465]
[1752854759035,0.5301907,118010.0,118000.0,0.684265]
[1752854759236,0.5301907,118010.0,118000.0,1.19318004]
[1752854759833,0.3608,118010.0,118000.0,1.19318004]
[1752854760037,1.22774951,118020.0,118010.0,0.3181807]
[1752854760341,1.22850951,118020.0,118010.0,1.19316574]
[1752854760542,1.01677621,118020.0,118010.0,1.19316574]
[1752854760737,1.18571251,118020.0,118010.0,1.19316574]
[1752854760938,0.38005621,118020.0,118010.0,1.19316574]
[1752854761240,0.38005621,118020.0,118010.0,1.48836574]
[1752854761439,0.38305621,118020.0,118010.0,1.48836574]
[1752854761640,0.38305621,118020.0,118010.0,2.12448574]
[1752854762043,0.5331763,118020.0,118010.0,2.12448574]
[1752854762442,0.1743763,118020.0,118010.0,2.12448574]
[1752854763136,0.5351763,118020.0,118010.0,2.12448574]
[1752854763444,0.1743763,118020.0,118010.0,2.12448574]
[1752854763944,0.1743763,118020.0,118010.0,1.48836574]
[1752854764444,0.5351763,118020.0,118010.0,2.12344574]
[1752854764837,0.5351763,118020.0,118010.0,1.6145307]
[1752854765146,0.1743763,118020.0,118010.0,1.6145307]
[1752854765347,0.5351763,118020.0,118010.0,2.12344574]
[1752854765733,0.5351763,118020.0,118010.0,2.12468574]
[1752854765939,0.5487463,118020.0,118010.0,0.9794507]
[1752854767245,1.1850663,118020.0,118010.0,0.9794507]
[1752854767445,1.1849463,118020.0,118010.0,0.9794507]
[1752854767745,1.1849463,118020.0,118010.0,0.81006]
[1752854767937,1.1934863,118020.0,118010.0,0.81006]
[1752854768142,1.70216134,118020.0,118010.0,0.745]
[1752854768343,1.70216134,118020.0,118010.0,0.43373]
[1752854768840,1.70216134,118020.0,118010.0,0.08373]
[1752854769146,1.71937627,118020.0,118010.0,0.08373]
[1752854769643,1.71937627,118020.0,118010.0,0.42373]
[1752854770141,1.71937627,118020.0,118010.0,0.44119]
[1752854770342,1.71937627,118020.0,118010.0,0.42373]
[1752854771343,1.08341627,118020.0,118010.0,0.44119]
[1752854771646,0.56596123,118020.0,118010.0,1.18686574]
[1752854771842,0.55867123,118020.0,118010.0,1.18686574]
[1752854772048,1.19035123,118020.0,118010.0,1.18686574]
[1752854772347,0.38301493,118020.0,118010.0,1.18686574]
[1752854772647,1.19031133,118020.0,118010.0,1.18686574]
[1752854772945,0.38301493,118020.0,118010.0,1.18686574]
[1752854773840,0.02221493,118020.0,118010.0,1.18686574]
[1752854774446,0.005,118020.0,118010.0,1.24720808]
[1752854774749,0.005,118020.0,118010.0,1.60800808]
[1752854775151,1.2098558,118040.0,118030.0,0.236732]
[1752854775352,1.2098558,118040.0,118030.0,1.15552704]
[1752854776152,0.5774958,118040.0,118030.0,1.15552704]
[1752854776352,1.2142158,118040.0,118030.0,1.15552704]
[1752854777054,0.8534158,118040.0,118030.0,1.15552704]
[1752854777554,0.8532558,118040.0,118030.0,1.16400004]
[1752854777752,1.2190558,118040.0,118030.0,1.16400004]
[1752854778253,0.1793581,118040.0,118030.0,0.655085]
[1752854778453,0.1793581,118040.0,118030.0,1.16400004]
[1752854778953,0.8147981,118040.0,118030.0,1.16400004]
[1752854779148,0.8147981,118040.0,118030.0,1.22434238]
[1752854779350,1.1755981,118040.0,118030.0,1.22434238]
[1752854779552,1.1755981,118040.0,118030.0,0.655085]
[1752854779751,0.5487981,118040.0,118030.0,0.655085]
[1752854780253,1.1843181,118040.0,118030.0,0.655085]
[1752854783157,1.1839181,118040.0,118030.0,1.16400004]
[1752854783359,1.1752781,118040.0,118030.0,1.16400004]
[1752854783554,0.8149181,118040.0,118030.0,1.16400004]
[1752854783858,0.01,118040.0,118030.0,1.22434238]
[1752854784558,0.01,118040.0,118030.0,1.16400004]
[1752854785158,0.005,118040.0,118030.0,1.16400004]
[1752854785356,0.59344669,118050.0,118040.0,0.2367177]
[1752854785557,0.36458,118050.0,118040.0,1.03217849]
[1752854785751,1.1693934,118050.0,118040.0,1.54109353]
[1752854786359,0.1731134,118050.0,118040.0,2.17641353]
[1752854787060,0.5339134,118050.0,118040.0,2.17641353]
[1752854787661,0.5339134,118050.0,118040.0,2.24532694]
[1752854789261,0.5339134,118050.0,118040.0,1.7364119]
[1752854789262,0.5498434,118050.0,118040.0,1.7364119]
[1752854789453,1.06768844,118050.0,118040.0,0.80245]
[1752854789653,1.08928516,118050.0,118040.0,0.42242]
[1752854790453,0.58037012,118050.0,118040.0,0.42242]
[1752854790855,1.08928516,118050.0,118040.0,0.42242]
[1752854791361,1.20131012,118050.0,118040.0,0.50757]
[1752854791763,1.72022516,118050.0,118040.0,0.44844]
[1752854791958,1.72022516,118050.0,118040.0,0.42242]
[1752854792461,1.72022516,118050.0,118040.0,0.34]
[1752854792863,2.13964916,118050.0,118040.0,0.34]
[1752854793060,0.1801277,118040.0,118030.0,0.08483]
[1752854793259,1.05984274,118040.0,118030.0,0.43483]
[1752854793662,1.05984274,118040.0,118030.0,0.08483]
[1752854793864,1.05984274,118040.0,118030.0,0.40483]
[1752854794261,0.169362,118030.0,118020.0,0.01778]
[1752854794461,1.69481704,118030.0,118020.0,0.43483]
[1752854795065,1.69481704,118030.0,118020.0,0.45261]
[1752854795265,1.185902,118030.0,118020.0,0.6589264]
[1752854795461,0.540942,118030.0,118020.0,0.6882564]
[1752854795767,1.174362,118030.0,118020.0,1.19717144]
[1752854795967,1.173072,118030.0,118020.0,1.19717144]
[1752854796366,1.173072,118030.0,118020.0,0.6882564]
[1752854796561,0.538352,118030.0,118020.0,0.6902564]
[1752854796767,1.173192,118030.0,118020.0,0.6902564]
[1752854797370,1.173192,118030.0,118020.0,0.6892564]
[1752854798372,0.538352,118030.0,118020.0,0.6902564]
[1752854798572,0.538352,118030.0,118020.0,1.19917144]
[1752854798867,0.5301621,118030.0,118020.0,1.19917144]
[1752854799171,0.3608,118030.0,118020.0,1.19917144]
[1752854799473,0.5301621,118030.0,118020.0,1.19917144]
[1752854799863,0.1693621,118030.0,118020.0,0.6902564]
[1752854800070,0.1693621,118030.0,118020.0,1.19917144]
[1752854800672,0.1693621,118030.0,118020.0,1.49437144]
[1752854801069,0.1693621,118030.0,118020.0,1.55475223]
[1752854801964,0.5396421,118030.0,118020.0,0.81608]
[1752854802273,0.5409421,118030.0,118020.0,0.9854564]
[1752854804570,0.5409421,118030.0,118020.0,0.81608]
[1752854804774,0.5409421,118030.0,118020.0,0.9854564]
[1752854805876,1.1729421,118030.0,118020.0,0.81608]
[1752854806272,1.1821421,118030.0,118020.0,0.78775]
[1752854806472,1.70877262,118030.0,118020.0,0.08783]
[1752854806677,1.70877262,118030.0,118020.0,0.13783]
[1752854807470,1.19909758,118030.0,118020.0,0.13483]
[1752854807675,0.56785758,118030.0,118020.0,0.42483]
[1752854807877,1.18897758,118030.0,118020.0,0.50788]
[1752854808074,1.18897758,118030.0,118020.0,0.16788]
[1752854808379,1.19698758,118030.0,118020.0,0.51788]
[1752854808578,1.19702758,118030.0,118020.0,0.51788]
[1752854808776,1.19766758,118030.0,118020.0,0.08483]
[1752854808981,1.70658262,118030.0,118020.0,0.43483]
[1752854809185,1.70658262,118030.0,118020.0,0.08483]
[1752854809883,1.07482262,118030.0,118020.0,0.08483]
[1752854810177,0.1777508,118010.0,118000.0,0.10261]
[1752854810383,2.04763584,118010.0,118000.0,0.43261]
[1752854810778,1.5387208,118010.0,118000.0,0.43261]
[1752854812081,1.5304008,118010.0,118000.0,0.6758461]
[1752854812382,1.5297208,118010.0,118000.0,1.18476114]
[1752854812585,1.55492414,118010.0,118000.0,0.49788]
[1752854812778,1.50125121,118010.0,118000.0,0.15483]
[1752854812983,0.1777252,118000.0,117990.0,0.10261]
[1752854813178,1.05549024,118000.0,117990.0,0.45261]
[1752854813383,0.5465752,118000.0,117990.0,0.45261]
[1752854813884,0.5465752,118000.0,117990.0,0.46119]
[1752854814590,1.05549024,118000.0,117990.0,0.46119]
[1752854814797,1.05549024,118000.0,117990.0,0.43783]
[1752854815592,1.05549024,118000.0,117990.0,0.12783]
[1752854815794,1.05549024,118000.0,117990.0,0.32783]
[1752854815989,1.22498624,118000.0,117990.0,0.243]
[1752854816190,0.1777394,117990.0,117980.0,0.08483]
[1752854816396,1.68450444,117990.0,117980.0,0.39483]
[1752854816998,1.68434444,117990.0,117980.0,0.39483]
[1752854817200,1.70183371,117990.0,117980.0,0.31]
[1752854817404,0.1777539,117980.0,117970.0,0.10261]
[1752854817596,0.5466039,117980.0,117970.0,0.42261]
[1752854817996,0.5466039,117980.0,117970.0,0.43119]
[1752854818497,1.05551894,117980.0,117970.0,0.40483]
[1752854819200,1.07810894,117980.0,117970.0,0.328128]
[1752854819401,0.2338782,117970.0,117960.0,0.01778]
[1752854819700,1.2894982,117970.0,117960.0,0.32778]
[1752854819895,1.79841324,117970.0,117960.0,0.31]
[1752854820095,1.79841324,117970.0,117960.0,0.2816528]
[1752854820294,1.2894982,117970.0,117960.0,0.2816528]
[1752854820499,0.1776526,117960.0,117950.0,0.02636]
[1752854820697,0.6520626,117960.0,117950.0,0.34472]
[1752854820896,1.16933764,117960.0,117950.0,0.29858]
[1752854821098,0.6604226,117960.0,117950.0,0.35812]
[1752854821298,0.6520626,117960.0,117950.0,0.45507]
[1752854821697,1.2616726,117960.0,117950.0,0.45507]
[1752854821899,1.2616726,117960.0,117950.0,0.45607]
[1752854822204,1.2939426,117960.0,117950.0,0.45607]
[1752854823100,1.2855826,117960.0,117950.0,0.45607]
[1752854823300,1.79449764,117960.0,117950.0,0.45607]
[1752854823500,1.80285764,117960.0,117950.0,0.45607]
[1752854823707,1.80285764,117960.0,117950.0,0.40033]
[1752854824004,1.80285764,117960.0,117950.0,0.40233]
[1752854824603,1.80285764,117960.0,117950.0,1e-07]
[1752854824804,1.97241764,117960.0,117950.0,1e-07]
[1752854825002,0.3224511,117940.0,117930.0,0.0394927]
[1752854825303,0.2359354,117930.0,117920.0,0.00010909]
[1752854825499,1.10565044,117930.0,117920.0,0.20010909]
[1752854825696,1.19218044,117930.0,117920.0,0.20010909]
[1752854826003,1.25848391,117930.0,117920.0,0.20010909]
[1752854826205,1.25848391,117930.0,117920.0,0.01]
[1752854826901,1.25848391,117930.0,117920.0,0.00189924]
[1752854827702,1.25848391,117930.0,117920.0,0.00489924]
[1752854828911,1.25848391,117930.0,117920.0,4e-08]
[1752854829099,1.89164391,117930.0,117920.0,4e-08]
[1752854829411,1.89164391,117930.0,117920.0,0.19000004]
[1752854829709,1.89164391,117930.0,117920.0,4e-08]
[1752854829904,1.80511391,117930.0,117920.0,4e-08]
[1752854830101,1.80511391,117930.0,117920.0,0.19000004]
[1752854830506,0.74956887,117930.0,117920.0,0.31105004]
[1752854830706,0.36933,117930.0,117920.0,1.03375518]
[1752854830914,1.1629057,117930.0,117920.0,1.03375514]
[1752854831314,0.8021057,117930.0,117920.0,1.03375514]
[1752854831614,1.1629057,117930.0,117920.0,1.03375514]
[1752854831911,1.2053057,117930.0,117920.0,0.35532]
[1752854832107,1.2053057,117930.0,117920.0,0.35632]
[1752854832314,1.2224857,117930.0,117920.0,0.35632]
[1752854832509,1.2224857,117930.0,117920.0,0.52584]
[1752854832709,1.2600157,117930.0,117920.0,0.52584]
[1752854833010,1.2428357,117930.0,117920.0,0.35632]
[1752854833611,1.2600157,117930.0,117920.0,0.35632]
[1752854833812,1.79588074,117930.0,117920.0,0.23553]
[1752854834016,1.79588074,117930.0,117920.0,0.1362962]
[1752854834508,1.79588074,117930.0,117920.0,0.001]
[1752854834709,0.2359497,117920.0,117910.0,0.04253]
[1752854834904,0.2359497,117920.0,117910.0,0.11253]
[1752854834905,1.19219474,117920.0,117910.0,0.11253]
[1752854835111,0.6832797,117920.0,117910.0,0.11253]
[1752854835311,1.19219474,117920.0,117910.0,0.11253]
[1752854835816,1.19219474,117920.0,117910.0,0.0606971]
[1752854836116,0.339724,117910.0,117900.0,0.00883]
[1752854836312,0.1695484,117900.0,117890.0,0.05822]
[1752854836506,0.7005384,117900.0,117890.0,0.09553]
[1752854836913,1.20945344,117900.0,117890.0,0.05004]
[1752854837104,1.20945344,117900.0,117880.0,0.12279]
[1752854837105,0.2359928,117890.0,117880.0,0.12279]
[1752854837321,1.3334328,117890.0,117880.0,0.12279]
[1752854837912,1.3334328,117890.0,117880.0,0.16532]
[1752854838110,1.84234784,117890.0,117880.0,0.16532]
[1752854838416,0.3397671,117880.0,117870.0,0.41799]
[1752854838616,0.3397671,117880.0,117870.0,0.12279]
[1752854838617,0.7005671,117880.0,117870.0,0.12279]
[1752854839211,0.7005671,117880.0,117870.0,0.05004]
[1752854839415,1.20948214,117880.0,117870.0,0.05004]
[1752854839613,0.3397956,117860.0,117850.0,0.12279]
[1752854839818,1.35347647,117860.0,117850.0,0.13117153]
[1752854840019,1.35347647,117860.0,117850.0,0.30079153]
[1752854840214,1.29389647,117860.0,117850.0,0.80970657]
[1752854840420,1.29389647,117860.0,117850.0,0.85223657]
[1752854840421,1.29533647,117860.0,117850.0,0.85223657]
[1752854840619,1.12573087,117860.0,117850.0,0.85223657]
[1752854840815,0.65436087,117860.0,117850.0,0.85223657]
[1752854841120,0.65436087,117860.0,117850.0,0.85523657]
[1752854841514,0.65436087,117860.0,117850.0,0.34632153]
[1752854841719,0.65436087,117860.0,117850.0,0.85523657]
[1752854841924,0.65436087,117860.0,117850.0,0.85823657]
[1752854842220,0.82396667,117860.0,117850.0,0.85823657]
[1752854842423,1.29705667,117860.0,117850.0,0.34932173]
[1752854842622,1.29705667,117860.0,117850.0,0.17970153]
[1752854843019,1.29705667,117860.0,117850.0,0.34932173]
[1752854843212,1.12745087,117860.0,117850.0,0.34932173]
[1752854843413,0.43051087,117860.0,117850.0,0.85823677]
[1752854843623,1.01432087,117860.0,117850.0,0.85823677]
[1752854843816,0.37780087,117860.0,117850.0,0.85823677]
[1752854844821,0.01700087,117860.0,117850.0,1.72795181]
[1752854845016,0.99704,117870.0,117860.0,0.1696057]
[1752854845216,0.99704,117870.0,117860.0,0.2703557]
[1752854845217,0.3608,117870.0,117860.0,0.2703557]
[1752854845524,0.3608,117870.0,117860.0,0.77927074]
[1752854846117,0.3608,117870.0,117860.0,0.78327074]
[1752854846819,0.5303913,117870.0,117860.0,0.61366504]
[1752854847020,0.6341513,117870.0,117860.0,0.08774]
[1752854847527,0.6341513,117870.0,117860.0,0.2573457]
[1752854847715,1.2717913,117870.0,117860.0,0.08774]
[1752854848820,1.2717913,117870.0,117860.0,0.2573457]
[1752854849420,0.9109913,117870.0,117860.0,0.78327074]
[1752854849620,1.2717913,117870.0,117860.0,0.78327074]
[1752854849918,1.2717913,117870.0,117860.0,0.08774]
[1752854850129,1.2717913,117870.0,117860.0,0.04521]
[1752854850423,1.2717913,117870.0,117860.0,0.004]
[1752854851012,1.34849335,117870.0,117860.0,0.004]
[1752854851623,1.34849335,117870.0,117860.0,0.1736057]
[1752854851826,0.77982335,117870.0,117860.0,0.84117074]
[1752854852022,1.41686335,117870.0,117860.0,0.3321457]
[1752854852621,1.3995413,117870.0,117860.0,0.3321457]
[1752854853218,1.2550113,117870.0,117860.0,0.84106074]
[1752854853528,1.3497713,117870.0,117860.0,0.3495757]
[1752854853722,1.3497713,117870.0,117860.0,0.3321457]
[1752854854124,1.4105813,117870.0,117860.0,0.1736057]
[1752854854326,1.4105813,117870.0,117860.0,0.004]
[1752854854526,1.4105813,117870.0,117860.0,0.1736057]
[1752854854724,0.7724213,117870.0,117860.0,0.1736057]
[1752854854932,1.4114213,117870.0,117860.0,0.1736057]
[1752854855223,1.92033634,117870.0,117860.0,0.004]
[1752854855428,1.4114213,117870.0,117860.0,0.004]
[1752854855822,1.4114213,117870.0,117860.0,0.1736057]
[1752854858331,1.4114213,117870.0,117860.0,0.2716557]
[1752854858526,0.7724213,117870.0,117860.0,0.84106074]
[1752854858728,0.4295,117870.0,117860.0,0.85849074]
[1752854858931,0.42018,117870.0,117860.0,0.85849074]
[1752854859128,0.05938,117870.0,117860.0,1.15369074]